[Event "December 5 Early 2023"]
[Site "https://www.chess.com"]
[Date "2023.12.05"]
[Round "7"]
[White "Molina, Roberto Junio Brito"]
[Black "Kopczynski, Michal"]
[Result "1-0"]
[Board "84"]
[TimeControl "180+1"]
[WhiteFideId "2109450"]
[BlackFideId "1124200"]
[WhiteElo "2799"]
[BlackElo "2496"]
[WhiteTeam "BRA"]
[BlackTeam "POL"]
[WhiteClock "0:00:40"]
[BlackClock "0:01:31"]

1. e4 {[%clk 0:03:00]}  b6 {[%clk 0:03:00]} 2. d4 {[%clk 0:03:00]}  Bb7 {[%clk 0:03:01]} 3. Bd3 {[%clk 0:03:00]}  e6 {[%clk 0:03:01]} 4. Nf3 {[%clk 0:02:59]}  Nf6 {[%clk 0:03:02]} 5. Qe2 {[%clk 0:02:59]}  d5 {[%clk 0:03:03]} 6. e5 {[%clk 0:02:59]}  Nfd7 {[%clk 0:03:03]} 7. O-O {[%clk 0:02:58]}  c5 {[%clk 0:03:04]} 8. c3 {[%clk 0:02:58]}  Nc6 {[%clk 0:03:04]} 9. a3 {[%clk 0:02:58]}  Qc7 {[%clk 0:03:05]} 10. Re1 {[%clk 0:02:52]}  O-O-O {[%clk 0:03:04]} 11. b4 {[%clk 0:02:52]}  c4 {[%clk 0:03:04]} 12. Bc2 {[%clk 0:02:52]}  h6 {[%clk 0:03:05]} 13. a4 {[%clk 0:02:51]}  Re8 {[%clk 0:03:05]} 14. Nbd2 {[%clk 0:02:50]}  f5 {[%clk 0:03:05]} 15. h4 {[%clk 0:02:38]}  Be7 {[%clk 0:03:01]} 16. h5 {[%clk 0:02:37]}  g6 {[%clk 0:03:00]} 17. hxg6 {[%clk 0:02:36]}  Rhg8 {[%clk 0:03:00]} 18. g3 {[%clk 0:02:25]}  Rxg6 {[%clk 0:03:00]} 19. Kg2 {[%clk 0:02:25]}  Reg8 {[%clk 0:03:00]} 20. Rh1 {[%clk 0:02:24]}  Rg4 {[%clk 0:02:51]} 21. Nf1 {[%clk 0:02:19]}  Bxb4 {[%clk 0:01:52]} 22. Bd2 {[%clk 0:02:02]}  Bf8 {[%clk 0:01:43]} 23. Bxh6 {[%clk 0:02:01]}  Bxh6 {[%clk 0:01:38]} 24. Rxh6 {[%clk 0:02:02]}  f4 {[%clk 0:01:38]} 25. Rxe6 {[%clk 0:01:47]}  fxg3 {[%clk 0:01:39]} 26. fxg3 {[%clk 0:01:47]}  Kb8 {[%clk 0:01:23]} 27. Rh6 {[%clk 0:01:37]}  Bc8 {[%clk 0:01:22]} 28. Bf5 {[%clk 0:01:30]}  Ndxe5 {[%clk 0:00:40]} 29. Nxe5 {[%clk 0:00:51]}  Nxe5 {[%clk 0:00:27]} 30. Bxc8 {[%clk 0:00:40]}  Nd3 {[%clk 0:00:27]} 31. Bxg4 {[%clk 0:00:38]}  Qg7 {[%clk 0:00:19]} 32. Rh4 {[%clk 0:00:36]}  Qg5 {[%clk 0:00:19]} 33. Qf3 {[%clk 0:00:32]}  Re8 {[%clk 0:00:14]} 34. Rd1 {[%clk 0:00:29]}  Ne1+ {[%clk 0:00:12]} 35. Rxe1 {[%clk 0:00:29]}  Rxe1 {[%clk 0:00:13]} 36. Qf4+ {[%clk 0:00:26]}  Qxf4 {[%clk 0:00:12]} 37. gxf4 {[%clk 0:00:27]}  Rc1 {[%clk 0:00:11]} 38. Rh3 {[%clk 0:00:27]}  Kc7 {[%clk 0:00:09]} 39. Be2 {[%clk 0:00:26]}  Kd6 {[%clk 0:00:08]} 40. Kf2 {[%clk 0:00:26]}  Ra1 {[%clk 0:00:08]} 41. Re3 {[%clk 0:00:26]}  Rxa4 {[%clk 0:00:07]} 42. f5 {[%clk 0:00:26]}  Ra6 {[%clk 0:00:03]} 43. Re6+ {[%clk 0:00:25]}  Kd7 {[%clk 0:00:03]} 44. Ne3 {[%clk 0:00:25]}  Ra3 {[%clk 0:00:03]} 45. Nxd5 {[%clk 0:00:26]}  Rb3 {[%clk 0:00:02]} 46. Re5 {[%clk 0:00:24]}  a5 {[%clk 0:00:01]} 47. f6 {[%clk 0:00:24]}  a4 {[%clk 0:00:02]} 48. f7 {[%clk 0:00:24]}  a3 {[%clk 0:00:02]} 49. f8=R {[%clk 0:00:19]}  a2 {[%clk 0:00:03]} 50. Ra8 {[%clk 0:00:19]}  Rb2 {[%clk 0:00:03]} 51. Nxb6+ {[%clk 0:00:19]}  Rxb6 {[%clk 0:00:02]} 52. Rxa2 {[%clk 0:00:19]}  Kc6 {[%clk 0:00:03]} 53. Bxc4 {[%clk 0:00:17]}  Kb7 {[%clk 0:00:04]} 54. Ke3 {[%clk 0:00:18]}  Rf6 {[%clk 0:00:05]} 55. Bd5+ {[%clk 0:00:18]}  Kb6 {[%clk 0:00:05]} 56. Be4 {[%clk 0:00:18]}  Kc7 {[%clk 0:00:04]} 57. Ra7+ {[%clk 0:00:18]}  Kb6 {[%clk 0:00:04]} 58. Raa5 {[%clk 0:00:19]}  Rf1 {[%clk 0:00:03]} 59. Kd3 {[%clk 0:00:19]}  Rd1+ {[%clk 0:00:03]} 60. Kc4 {[%clk 0:00:19]}  Rc1 {[%clk 0:00:03]} 61. Reb5+ {[%clk 0:00:19]}  Kc7 {[%clk 0:00:03]} 62. Bd3 {[%clk 0:00:20]}  Kd6 {[%clk 0:00:04]} 63. Ra4 {[%clk 0:00:20]}  Kc7 {[%clk 0:00:04]} 64. Rab4 {[%clk 0:00:21]}  Kd6 {[%clk 0:00:04]} 65. Rb1 {[%clk 0:00:21]}  Rxb1 {[%clk 0:00:02]} 66. Rxb1 {[%clk 0:00:22]}  Kc6 {[%clk 0:00:02]} 67. Be4+ {[%clk 0:00:20]}  Kc7 {[%clk 0:00:03]} 68. Kc5 {[%clk 0:00:20]}  Kd7 {[%clk 0:00:03]} 69. Kd5 {[%clk 0:00:20]}  Kc7 {[%clk 0:00:04]} 70. c4 {[%clk 0:00:21]}  Kd7 {[%clk 0:00:04]} 71. c5 {[%clk 0:00:22]}  Kc7 {[%clk 0:00:05]} 72. Bd3 {[%clk 0:00:22]}  Kd7 {[%clk 0:00:06]} 73. Bc4 {[%clk 0:00:23]}  Kc7 {[%clk 0:00:06]} 74. Rb6 {[%clk 0:00:23]}  Kd7 {[%clk 0:00:07]} 75. Ke4 {[%clk 0:00:24]}  Kc7 {[%clk 0:00:08]} 76. Kd3 {[%clk 0:00:25]}  Kd7 {[%clk 0:00:09]} 77. Kc3 {[%clk 0:00:26]}  Kc7 {[%clk 0:00:10]} 78. Kb4 {[%clk 0:00:26]}  Kd7 {[%clk 0:00:11]} 79. d5 {[%clk 0:00:27]}  Kc7 {[%clk 0:00:11]} 80. Kb3 {[%clk 0:00:27]}  Kd7 {[%clk 0:00:12]} 81. Kc3 {[%clk 0:00:28]}  Kc7 {[%clk 0:00:13]} 82. Kc2 {[%clk 0:00:29]}  Kd7 {[%clk 0:00:14]} 83. Kd3 {[%clk 0:00:30]}  Kc7 {[%clk 0:00:15]} 84. Kd4 {[%clk 0:00:31]}  Kd7 {[%clk 0:00:16]} 85. Ke4 {[%clk 0:00:32]}  Kc7 {[%clk 0:00:17]} 86. Ke5 {[%clk 0:00:33]}  Kd7 {[%clk 0:00:18]} 87. Rh6 {[%clk 0:00:33]}  Kc7 {[%clk 0:00:19]} 88. Rh7+ {[%clk 0:00:33]}  Kd8 {[%clk 0:00:19]} 89. Kd6 {[%clk 0:00:33]}  Kc8 {[%clk 0:00:19]} 90. Bd3 {[%clk 0:00:34]}  Kb8 {[%clk 0:00:19]} 91. Rc7 {[%clk 0:00:34]}  Ka8 {[%clk 0:00:20]} 92. Be4 {[%clk 0:00:33]}  Kb8 {[%clk 0:00:21]} 93. Bf5 {[%clk 0:00:33]}  Ka8 {[%clk 0:00:22]} 94. Kd7 {[%clk 0:00:32]}  Kb8 {[%clk 0:00:23]} 95. Kd8 {[%clk 0:00:31]}  Ka8 {[%clk 0:00:24]} 96. Rd7 {[%clk 0:00:29]}  Kb8 {[%clk 0:00:25]} 97. c6 {[%clk 0:00:27]}  Ka8 {[%clk 0:00:26]} 98. Kc7 {[%clk 0:00:27]}  Ka7 {[%clk 0:00:26]} 99. Rd8 {[%clk 0:00:26]}  Ka6 {[%clk 0:00:26]} 100. Rb8 {[%clk 0:00:26]}  Ka7 {[%clk 0:00:27]} 101. d6 {[%clk 0:00:25]}  Ka6 {[%clk 0:00:28]} 102. Rb7 {[%clk 0:00:26]}  Ka5 {[%clk 0:00:28]} 103. Rb6 {[%clk 0:00:26]}  Ka4 {[%clk 0:00:28]} 104. Bc8 {[%clk 0:00:26]}  Ka5 {[%clk 0:00:28]} 105. Ba6 {[%clk 0:00:26]}  Ka4 {[%clk 0:00:29]} 106. Rb5 {[%clk 0:00:26]}  Ka3 {[%clk 0:00:30]} 107. Kb6 {[%clk 0:00:27]}  Ka4 {[%clk 0:00:31]} 108. Kc5 {[%clk 0:00:27]}  Ka3 {[%clk 0:00:31]} 109. Rb4 {[%clk 0:00:27]}  Ka2 {[%clk 0:00:32]} 110. Bb5 {[%clk 0:00:27]}  Ka3 {[%clk 0:00:32]} 111. Ba4 {[%clk 0:00:27]}  Ka2 {[%clk 0:00:33]} 112. Rb3 {[%clk 0:00:27]}  Ka1 {[%clk 0:00:34]} 113. Kc4 {[%clk 0:00:28]}  Ka2 {[%clk 0:00:34]} 114. Kd5 {[%clk 0:00:29]}  Ka1 {[%clk 0:00:35]} 115. Kd4 {[%clk 0:00:30]}  Ka2 {[%clk 0:00:36]} 116. Ke5 {[%clk 0:00:30]}  Ka1 {[%clk 0:00:37]} 117. Ke4 {[%clk 0:00:31]}  Ka2 {[%clk 0:00:38]} 118. Kf5 {[%clk 0:00:32]}  Ka1 {[%clk 0:00:38]} 119. Kf4 {[%clk 0:00:33]}  Ka2 {[%clk 0:00:39]} 120. Kg5 {[%clk 0:00:34]}  Ka1 {[%clk 0:00:40]} 121. Kg4 {[%clk 0:00:35]}  Ka2 {[%clk 0:00:41]} 122. Kh5 {[%clk 0:00:36]}  Ka1 {[%clk 0:00:42]} 123. d7 {[%clk 0:00:37]}  Ka2 {[%clk 0:00:43]} 124. Kh6 {[%clk 0:00:38]}  Ka1 {[%clk 0:00:44]} 125. Kh7 {[%clk 0:00:38]}  Ka2 {[%clk 0:00:45]} 126. Kh8 {[%clk 0:00:39]}  Ka1 {[%clk 0:00:46]} 127. Kg7 {[%clk 0:00:40]}  Ka2 {[%clk 0:00:47]} 128. Kg8 {[%clk 0:00:41]}  Ka1 {[%clk 0:00:47]} 129. Kf7 {[%clk 0:00:42]}  Ka2 {[%clk 0:00:48]} 130. Kf8 {[%clk 0:00:43]}  Ka1 {[%clk 0:00:49]} 131. Ke7 {[%clk 0:00:44]}  Ka2 {[%clk 0:00:50]} 132. Ke8 {[%clk 0:00:44]}  Ka1 {[%clk 0:00:51]} 133. Kd8 {[%clk 0:00:45]}  Ka2 {[%clk 0:00:51]} 134. Kc8 {[%clk 0:00:46]}  Ka1 {[%clk 0:00:52]} 135. Kc7 {[%clk 0:00:47]}  Ka2 {[%clk 0:00:53]} 136. Kb8 {[%clk 0:00:48]}  Ka1 {[%clk 0:00:54]} 137. Kb7 {[%clk 0:00:49]}  Ka2 {[%clk 0:00:54]} 138. Ka7 {[%clk 0:00:50]}  Ka1 {[%clk 0:00:55]} 139. Kb6 {[%clk 0:00:51]}  Ka2 {[%clk 0:00:56]} 140. Ka5 {[%clk 0:00:52]}  Ka1 {[%clk 0:00:57]} 141. Kb5 {[%clk 0:00:53]}  Ka2 {[%clk 0:00:58]} 142. Kb4 {[%clk 0:00:53]}  Ka1 {[%clk 0:00:59]} 143. Kc5 {[%clk 0:00:54]}  Ka2 {[%clk 0:01:00]} 144. Kc4 {[%clk 0:00:55]}  Ka1 {[%clk 0:01:01]} 145. Kd5 {[%clk 0:00:56]}  Ka2 {[%clk 0:01:02]} 146. Kd4 {[%clk 0:00:57]}  Ka1 {[%clk 0:01:02]} 147. Ke5 {[%clk 0:00:58]}  Ka2 {[%clk 0:01:03]} 148. Ke4 {[%clk 0:00:59]}  Ka1 {[%clk 0:01:04]} 149. Kf5 {[%clk 0:01:00]}  Ka2 {[%clk 0:01:05]} 150. c7 {[%clk 0:00:56]}  Ka1 {[%clk 0:01:06]} 151. Kf4 {[%clk 0:00:57]}  Ka2 {[%clk 0:01:07]} 152. Kg5 {[%clk 0:00:58]}  Ka1 {[%clk 0:01:08]} 153. Kg4 {[%clk 0:00:59]}  Ka2 {[%clk 0:01:09]} 154. Kh5 {[%clk 0:01:00]}  Ka1 {[%clk 0:01:09]} 155. Kh4 {[%clk 0:01:01]}  Ka2 {[%clk 0:01:10]} 156. Kh3 {[%clk 0:01:02]}  Ka1 {[%clk 0:01:11]} 157. Kh2 {[%clk 0:01:02]}  Ka2 {[%clk 0:01:12]} 158. Kg3 {[%clk 0:01:03]}  Ka1 {[%clk 0:01:13]} 159. Kg2 {[%clk 0:01:04]}  Ka2 {[%clk 0:01:14]} 160. Kf3 {[%clk 0:01:05]}  Ka1 {[%clk 0:01:15]} 161. Kf2 {[%clk 0:01:06]}  Ka2 {[%clk 0:01:16]} 162. Ke3 {[%clk 0:01:07]}  Ka1 {[%clk 0:01:17]} 163. Ke2 {[%clk 0:01:08]}  Ka2 {[%clk 0:01:17]} 164. Kd3 {[%clk 0:01:09]}  Ka1 {[%clk 0:01:18]} 165. Kd4 {[%clk 0:01:10]}  Ka2 {[%clk 0:01:19]} 166. Kc4 {[%clk 0:01:10]}  Ka1 {[%clk 0:01:20]} 167. Kc5 {[%clk 0:01:11]}  Ka2 {[%clk 0:01:21]} 168. Kd5 {[%clk 0:01:11]}  Ka1 {[%clk 0:01:22]} 169. Kd6 {[%clk 0:01:12]}  Ka2 {[%clk 0:01:23]} 170. Kc6 {[%clk 0:01:13]}  Ka1 {[%clk 0:01:24]} 171. Kb7 {[%clk 0:01:14]}  Ka2 {[%clk 0:01:24]} 172. Kb8 {[%clk 0:01:15]}  Ka1 {[%clk 0:01:25]} 173. Kc8 {[%clk 0:01:16]}  Ka2 {[%clk 0:01:26]} 174. Kd8 {[%clk 0:01:16]}  Ka1 {[%clk 0:01:27]} 175. Ke8 {[%clk 0:01:17]}  Ka2 {[%clk 0:01:28]} 176. d8=N {[%clk 0:00:56]}  Ka1 {[%clk 0:01:29]} 177. Nc6 {[%clk 0:00:56]}  Ka2 {[%clk 0:01:30]} 178. c8=Q {[%clk 0:00:40]}  Ka1 {[%clk 0:01:31]} 1-0

[Event "December 5 Early 2023"]
[Site "https://www.chess.com"]
[Date "2023.12.05"]
[Round "7"]
[White "Tikhonov, Viacheslav"]
[Black "GMVignirVatnar"]
[Result "1-0"]
[Board "85"]
[TimeControl "180+1"]
[WhiteFideId "44196407"]
[WhiteElo "2494"]
[BlackElo "2762"]
[WhiteTeam "RUS"]
[WhiteClock "0:00:08"]
[BlackClock "0:00:06"]

1. e4 {[%clk 0:03:00]}  c5 {[%clk 0:02:55]} 2. Nf3 {[%clk 0:03:00]}  Nc6 {[%clk 0:02:55]} 3. d4 {[%clk 0:02:59]}  cxd4 {[%clk 0:02:56]} 4. Nxd4 {[%clk 0:03:00]}  Nf6 {[%clk 0:02:56]} 5. Nc3 {[%clk 0:03:01]}  h5 {[%clk 0:02:54]} 6. Nxc6 {[%clk 0:02:50]}  bxc6 {[%clk 0:02:53]} 7. e5 {[%clk 0:02:49]}  Ng4 {[%clk 0:02:53]} 8. Qd4 {[%clk 0:02:29]}  Qa5 {[%clk 0:02:25]} 9. Bf4 {[%clk 0:02:21]}  Rb8 {[%clk 0:02:03]} 10. O-O-O {[%clk 0:01:49]}  Rb4 {[%clk 0:01:38]} 11. Bc4 {[%clk 0:01:10]}  Qb6 {[%clk 0:01:37]} 12. b3 {[%clk 0:00:53]}  Nxf2 {[%clk 0:01:29]} 13. Be3 {[%clk 0:00:40]}  Qxd4 {[%clk 0:01:25]} 14. Bxd4 {[%clk 0:00:39]}  Nxd1 {[%clk 0:01:25]} 15. Rxd1 {[%clk 0:00:38]}  a6 {[%clk 0:01:00]} 16. Rf1 {[%clk 0:00:30]}  f6 {[%clk 0:00:52]} 17. a3 {[%clk 0:00:24]}  Rb8 {[%clk 0:00:51]} 18. Bd3 {[%clk 0:00:23]}  fxe5 {[%clk 0:00:35]} 19. Bxe5 {[%clk 0:00:18]}  Kd8 {[%clk 0:00:35]} 20. Bxb8 {[%clk 0:00:18]}  d6 {[%clk 0:00:23]} 21. Ba7 {[%clk 0:00:15]}  c5 {[%clk 0:00:23]} 22. b4 {[%clk 0:00:15]}  cxb4 {[%clk 0:00:20]} 23. axb4 {[%clk 0:00:16]}  Bb7 {[%clk 0:00:20]} 24. g3 {[%clk 0:00:16]}  g5 {[%clk 0:00:20]} 25. Be4 {[%clk 0:00:15]}  Bxe4 {[%clk 0:00:16]} 26. Nxe4 {[%clk 0:00:16]}  g4 {[%clk 0:00:14]} 27. c3 {[%clk 0:00:15]}  Bh6+ {[%clk 0:00:13]} 28. Kc2 {[%clk 0:00:14]}  Kd7 {[%clk 0:00:14]} 29. Kd3 {[%clk 0:00:10]}  Rc8 {[%clk 0:00:14]} 30. Be3 {[%clk 0:00:09]}  Bxe3 {[%clk 0:00:14]} 31. Kxe3 {[%clk 0:00:10]}  d5 {[%clk 0:00:14]} 32. Nc5+ {[%clk 0:00:11]}  Kd6 {[%clk 0:00:14]} 33. Ra1 {[%clk 0:00:10]}  Ke5 {[%clk 0:00:12]} 34. Rxa6 {[%clk 0:00:09]}  Rf8 {[%clk 0:00:11]} 35. Re6+ {[%clk 0:00:09]}  Kf5 {[%clk 0:00:12]} 36. Rxe7 {[%clk 0:00:08]}  Ra8 {[%clk 0:00:13]} 37. Kd4 {[%clk 0:00:05]}  Ra1 {[%clk 0:00:13]} 38. Re5+ {[%clk 0:00:05]}  Kg6 {[%clk 0:00:12]} 39. Rxd5 {[%clk 0:00:06]}  Rh1 {[%clk 0:00:12]} 40. b5 {[%clk 0:00:06]}  Rxh2 {[%clk 0:00:13]} 41. Kc4 {[%clk 0:00:06]}  h4 {[%clk 0:00:09]} 42. gxh4 {[%clk 0:00:05]}  Rxh4 {[%clk 0:00:10]} 43. Rd4 {[%clk 0:00:03]}  Kf5 {[%clk 0:00:11]} 44. b6 {[%clk 0:00:04]}  Rh6 {[%clk 0:00:10]} 45. b7 {[%clk 0:00:04]}  Rb6 {[%clk 0:00:11]} 46. Rd8 {[%clk 0:00:04]}  g3 {[%clk 0:00:11]} 47. b8=Q {[%clk 0:00:04]}  g2 {[%clk 0:00:03]} 48. Rf8+ {[%clk 0:00:04]}  Kg6 {[%clk 0:00:01]} 49. Rg8+ {[%clk 0:00:05]}  Kh7 {[%clk 0:00:02]} 50. Qxb6 {[%clk 0:00:04]}  Kxg8 {[%clk 0:00:01]} 51. Qg6+ {[%clk 0:00:04]}  Kh8 {[%clk 0:00:02]} 52. Qxg2 {[%clk 0:00:05]}  Kh7 {[%clk 0:00:03]} 53. Qg5 {[%clk 0:00:04]}  Kh8 {[%clk 0:00:04]} 54. Kd5 {[%clk 0:00:05]}  Kh7 {[%clk 0:00:04]} 55. Ke6 {[%clk 0:00:06]}  Kh8 {[%clk 0:00:05]} 56. Kf7 {[%clk 0:00:07]}  Kh7 {[%clk 0:00:06]} 57. Qh5# {[%clk 0:00:08]} 1-0

[Event "December 5 Early 2023"]
[Site "https://www.chess.com"]
[Date "2023.12.05"]
[Round "7"]
[White "Herman, Matthew"]
[Black "Halkias, Stelios"]
[Result "0-1"]
[Board "86"]
[TimeControl "180+1"]
[WhiteFideId "2028964"]
[BlackFideId "4201809"]
[WhiteElo "2492"]
[BlackElo "2757"]
[WhiteTeam "USA"]
[BlackTeam "GRE"]
[WhiteClock "0:00:06"]
[BlackClock "0:00:18"]

1. e4 {[%clk 0:02:58]}  c5 {[%clk 0:02:59]} 2. Nf3 {[%clk 0:02:58]}  Nc6 {[%clk 0:02:59]} 3. Bb5 {[%clk 0:02:57]}  e6 {[%clk 0:02:57]} 4. c3 {[%clk 0:02:57]}  Nge7 {[%clk 0:02:53]} 5. O-O {[%clk 0:02:56]}  a6 {[%clk 0:02:51]} 6. Ba4 {[%clk 0:02:54]}  b5 {[%clk 0:02:50]} 7. Bc2 {[%clk 0:02:54]}  d5 {[%clk 0:02:41]} 8. e5 {[%clk 0:02:52]}  c4 {[%clk 0:02:33]} 9. d4 {[%clk 0:02:45]}  cxd3 {[%clk 0:02:33]} 10. Bxd3 {[%clk 0:02:42]}  Ng6 {[%clk 0:02:33]} 11. Re1 {[%clk 0:02:42]}  Bc5 {[%clk 0:02:30]} 12. b4 {[%clk 0:02:33]}  Bb6 {[%clk 0:02:21]} 13. a4 {[%clk 0:02:33]}  bxa4 {[%clk 0:02:20]} 14. Rxa4 {[%clk 0:02:32]}  O-O {[%clk 0:02:19]} 15. b5 {[%clk 0:02:12]}  Nce7 {[%clk 0:02:08]} 16. h4 {[%clk 0:01:46]}  Nf5 {[%clk 0:01:49]} 17. h5 {[%clk 0:01:31]}  Nge7 {[%clk 0:01:48]} 18. h6 {[%clk 0:01:18]}  f6 {[%clk 0:01:16]} 19. hxg7 {[%clk 0:01:04]}  Rf7 {[%clk 0:01:16]} 20. exf6 {[%clk 0:00:36]}  Rxf6 {[%clk 0:01:16]} 21. Bg5 {[%clk 0:00:37]}  Rf7 {[%clk 0:01:11]} 22. Ne5 {[%clk 0:00:24]}  Rxg7 {[%clk 0:01:08]} 23. Qh5 {[%clk 0:00:15]}  Qf8 {[%clk 0:00:48]} 24. Rg4 {[%clk 0:00:12]}  Ng6 {[%clk 0:00:38]} 25. Nxg6 {[%clk 0:00:08]}  Rxg6 {[%clk 0:00:37]} 26. Nd2 {[%clk 0:00:07]}  Ng3 {[%clk 0:00:24]} 27. Rxg3 {[%clk 0:00:06]}  Bxf2+ {[%clk 0:00:22]} 28. Kh2 {[%clk 0:00:06]}  Bxg3+ {[%clk 0:00:23]} 29. Kxg3 {[%clk 0:00:07]}  Qd6+ {[%clk 0:00:19]} 30. Kh4 {[%clk 0:00:07]}  Qh2+ {[%clk 0:00:18]} 31. Kg4 {[%clk 0:00:06]}  e5+ {[%clk 0:00:18]} 0-1

[Event "December 5 Early 2023"]
[Site "https://www.chess.com"]
[Date "2023.12.05"]
[Round "7"]
[White "Lehtosaari, Mauri"]
[Black "Papasimakopoulos, Alexandros"]
[Result "1/2-1/2"]
[Board "91"]
[TimeControl "180+1"]
[WhiteFideId "501999"]
[BlackFideId "4244125"]
[WhiteElo "2482"]
[BlackElo "2649"]
[WhiteTeam "FIN"]
[BlackTeam "GRE"]
[WhiteClock "0:00:14"]
[BlackClock "0:00:11"]

1. d4 {[%clk 0:03:00]}  e6 {[%clk 0:02:58]} 2. Nf3 {[%clk 0:02:59]}  Nf6 {[%clk 0:02:58]} 3. Bg5 {[%clk 0:02:53]}  c5 {[%clk 0:02:58]} 4. e3 {[%clk 0:02:53]}  Qb6 {[%clk 0:02:57]} 5. Nbd2 {[%clk 0:02:53]}  d5 {[%clk 0:02:57]} 6. Rb1 {[%clk 0:02:50]}  Bd7 {[%clk 0:02:55]} 7. c3 {[%clk 0:02:19]}  cxd4 {[%clk 0:02:42]} 8. exd4 {[%clk 0:02:19]}  Be7 {[%clk 0:02:39]} 9. Be2 {[%clk 0:02:19]}  Bb5 {[%clk 0:02:38]} 10. O-O {[%clk 0:02:19]}  Bxe2 {[%clk 0:02:35]} 11. Qxe2 {[%clk 0:02:20]}  Nc6 {[%clk 0:02:34]} 12. Ne5 {[%clk 0:02:16]}  h6 {[%clk 0:02:21]} 13. Bh4 {[%clk 0:01:53]}  Qd8 {[%clk 0:02:08]} 14. Nxc6 {[%clk 0:01:45]}  bxc6 {[%clk 0:02:06]} 15. Rfe1 {[%clk 0:01:29]}  O-O {[%clk 0:02:02]} 16. Nf3 {[%clk 0:01:22]}  Nd7 {[%clk 0:01:59]} 17. Bxe7 {[%clk 0:01:21]}  Qxe7 {[%clk 0:02:00]} 18. Ne5 {[%clk 0:01:19]}  Nxe5 {[%clk 0:01:57]} 19. Qxe5 {[%clk 0:01:20]}  c5 {[%clk 0:01:55]} 20. Qxd5 {[%clk 0:01:15]}  cxd4 {[%clk 0:01:49]} 21. Qxd4 {[%clk 0:01:16]}  Rfd8 {[%clk 0:01:35]} 22. Qe3 {[%clk 0:01:16]}  a5 {[%clk 0:01:32]} 23. h3 {[%clk 0:01:13]}  a4 {[%clk 0:01:30]} 24. c4 {[%clk 0:01:11]}  Qb4 {[%clk 0:01:28]} 25. b3 {[%clk 0:00:57]}  axb3 {[%clk 0:01:26]} 26. axb3 {[%clk 0:00:58]}  Ra2 {[%clk 0:01:15]} 27. Red1 {[%clk 0:00:53]}  Rb8 {[%clk 0:00:44]} 28. c5 {[%clk 0:00:45]}  Rc2 {[%clk 0:00:28]} 29. Rdc1 {[%clk 0:00:39]}  Rxc1+ {[%clk 0:00:26]} 30. Qxc1 {[%clk 0:00:31]}  Rc8 {[%clk 0:00:26]} 31. c6 {[%clk 0:00:31]}  Qb6 {[%clk 0:00:24]} 32. b4 {[%clk 0:00:27]}  Rxc6 {[%clk 0:00:19]} 33. Qb2 {[%clk 0:00:26]}  Qb5 {[%clk 0:00:18]} 34. Qd4 {[%clk 0:00:23]}  Rc8 {[%clk 0:00:17]} 35. Qd2 {[%clk 0:00:21]}  Rb8 {[%clk 0:00:18]} 36. Qc3 {[%clk 0:00:21]}  f6 {[%clk 0:00:16]} 37. Qe1 {[%clk 0:00:20]}  e5 {[%clk 0:00:16]} 38. Qc3 {[%clk 0:00:20]}  Qd5 {[%clk 0:00:13]} 39. Qb2 {[%clk 0:00:19]}  Rb5 {[%clk 0:00:13]} 40. Qc3 {[%clk 0:00:19]}  Kh7 {[%clk 0:00:12]} 41. Qc2+ {[%clk 0:00:19]}  e4 {[%clk 0:00:12]} 42. Qc3 {[%clk 0:00:18]}  f5 {[%clk 0:00:12]} 43. Qb2 {[%clk 0:00:17]}  Qc4 {[%clk 0:00:12]} 44. g3 {[%clk 0:00:17]}  Qd3 {[%clk 0:00:11]} 45. Qc1 {[%clk 0:00:15]}  Qd4 {[%clk 0:00:10]} 46. Qb2 {[%clk 0:00:14]}  Qb6 {[%clk 0:00:09]} 47. h4 {[%clk 0:00:12]}  e3 {[%clk 0:00:09]} 48. fxe3 {[%clk 0:00:10]}  Qxe3+ {[%clk 0:00:10]} 49. Qf2 {[%clk 0:00:10]}  Qe4 {[%clk 0:00:10]} 50. Rb2 {[%clk 0:00:09]}  Kg6 {[%clk 0:00:07]} 51. Qd2 {[%clk 0:00:09]}  Kh5 {[%clk 0:00:04]} 52. Qd1+ {[%clk 0:00:08]}  Qg4 {[%clk 0:00:04]} 53. Qxg4+ {[%clk 0:00:07]}  Kxg4 {[%clk 0:00:04]} 54. Kf2 {[%clk 0:00:07]}  g5 {[%clk 0:00:03]} 55. hxg5 {[%clk 0:00:08]}  hxg5 {[%clk 0:00:04]} 56. Kg2 {[%clk 0:00:08]}  f4 {[%clk 0:00:04]} 57. gxf4 {[%clk 0:00:08]}  Kxf4 {[%clk 0:00:04]} 58. Kf2 {[%clk 0:00:08]}  Ke4 {[%clk 0:00:04]} 59. Kg3 {[%clk 0:00:09]}  Kd4 {[%clk 0:00:05]} 60. Kg4 {[%clk 0:00:09]}  Kc3 {[%clk 0:00:06]} 61. Rf2 {[%clk 0:00:09]}  Rxb4+ {[%clk 0:00:05]} 62. Kxg5 {[%clk 0:00:10]}  Rb8 {[%clk 0:00:06]} 63. Kg4 {[%clk 0:00:10]}  Kd3 {[%clk 0:00:06]} 64. Rf5 {[%clk 0:00:10]}  Ke3 {[%clk 0:00:07]} 65. Re5+ {[%clk 0:00:10]}  Kd4 {[%clk 0:00:07]} 66. Rf5 {[%clk 0:00:11]}  Ke4 {[%clk 0:00:07]} 67. Rf4+ {[%clk 0:00:11]}  Ke3 {[%clk 0:00:08]} 68. Rf3+ {[%clk 0:00:12]}  Ke4 {[%clk 0:00:08]} 69. Rf4+ {[%clk 0:00:12]}  Ke5 {[%clk 0:00:09]} 70. Rf5+ {[%clk 0:00:13]}  Ke6 {[%clk 0:00:09]} 71. Rf4 {[%clk 0:00:12]}  Rb3 {[%clk 0:00:10]} 72. Re4+ {[%clk 0:00:12]}  Kf6 {[%clk 0:00:10]} 73. Kf4 {[%clk 0:00:12]}  Rb5 {[%clk 0:00:09]} 74. Rd4 {[%clk 0:00:13]}  Rf5+ {[%clk 0:00:10]} 75. Ke4 {[%clk 0:00:13]}  Rh5 {[%clk 0:00:10]} 76. Kd3 {[%clk 0:00:13]}  Ke5 {[%clk 0:00:09]} 77. Kc4 {[%clk 0:00:13]}  Rf5 {[%clk 0:00:10]} 78. Rd5+ {[%clk 0:00:14]}  Ke4 {[%clk 0:00:10]} 79. Rxf5 {[%clk 0:00:14]}  Kxf5 {[%clk 0:00:11]} 1/2-1/2